lending/lending_fUSD_20240112
["ID","MTS","AMOUNT","RATE_DAILY","PERIOD"]
[311406925,1705077155580,-500.0,0.00035087,3]
[311406926,1705077155589,-6492.37907995,0.000351,30]
[311406927,1705077155599,-1000.0,0.00035149,2]
[311406928,1705077155608,-150.0,0.00035166,2]
[311406929,1705077155618,-417.82,0.00035166,2]
[311406930,1705077155627,-417.82,0.00035166,2]
[311406931,1705077155637,-1403.261193,0.00035184,2]
[311406932,1705077155647,-150.0,0.000352,24]
[311406933,1705077155657,-151.76009724,0.00035211,2]
[311406934,1705077155666,-1157.52,0.00035231,2]
[311406935,1705077155676,-500.0,0.00035234,2]
[311406936,1705077155685,-18961.202423,0.00035342,2]
[311406937,1705077155694,-195871.686994,0.00035342,2]
[311406938,1705077155704,-5160.706846,0.00035342,2]
[311406939,1705077155714,-205.0,0.00035386,21]
[311406940,1705077155723,-500.0,0.00035415,2]
[311406941,1705077155732,-1403.261193,0.00035473,2]
[311406942,1705077155743,-764.47,0.00035484,2]
[311406943,1705077155753,-150.0,0.00035506,2]
[311406944,1705077155761,-150.0,0.00035561,2]
[311406945,1705077155770,-150.0,0.00035561,2]
[311406946,1705077155779,-150.0,0.00035561,2]
[311406947,1705077155789,-150.0,0.00035561,2]
[311406948,1705077155799,-150.0,0.00035561,2]
[311406949,1705077155808,-150.0,0.00035561,2]
[311406950,1705077155818,-500.0,0.00035596,2]
[311406951,1705077155828,-1000.0,0.000356,2]
[311406952,1705077155837,-750.0,0.000356,2]
[311406953,1705077155847,-1000.0,0.000356,2]
[311406954,1705077155856,-1000.0,0.000356,2]
[311406955,1705077155865,-345.00999416,0.00035616,7]
[311406956,1705077155875,-150.0,0.00035616,2]
[311406957,1705077155885,-300.0,0.00035616,7]
[311406958,1705077155894,-450.0,0.00035616,12]
[311406959,1705077155904,-171.48200431,0.00035616,17]
[311406960,1705077155913,-500.0,0.00035616,2]
[311406961,1705077155922,-500.0,0.00035616,2]
[311406962,1705077155932,-500.0,0.00035616,2]
[311406963,1705077155941,-500.0,0.00035616,2]
[311406964,1705077155950,-500.0,0.00035616,2]
[311406965,1705077155959,-500.0,0.00035616,2]
[311406966,1705077155968,-500.0,0.00035616,2]
[311406967,1705077155977,-500.0,0.00035616,2]
[311406968,1705077155986,-500.0,0.00035616,2]
[311406969,1705077155996,-500.0,0.00035616,2]
[311406970,1705077156005,-500.0,0.00035616,2]
[311406971,1705077156015,-500.0,0.00035616,2]
[311406972,1705077156024,-500.0,0.00035616,2]
[311406973,1705077156034,-500.0,0.00035616,2]
[311406974,1705077156043,-500.0,0.00035616,2]
[311406975,1705077156052,-500.0,0.00035616,2]
[311406976,1705077156061,-500.0,0.00035616,2]
[311406977,1705077156071,-500.0,0.00035616,2]
[311406978,1705077156081,-500.0,0.00035616,2]
[311406979,1705077156090,-500.0,0.00035616,2]
[311406980,1705077156099,-153.84,0.00035616,2]
[311406981,1705077156108,-151.0,0.00035616,7]
[311406982,1705077156117,-156.54389,0.00035616,7]
[311406983,1705077156126,-151.0,0.00035616,7]
[311406984,1705077156136,-151.0,0.00035616,7]
[311406985,1705077156145,-151.0,0.00035616,7]
[311406986,1705077156155,-151.0,0.00035616,7]
[311406987,1705077156164,-151.0,0.00035616,7]
[311406988,1705077156173,-151.0,0.00035616,7]
[311406989,1705077156182,-235.0,0.00035616,7]
[311406990,1705077156191,-151.0,0.00035616,7]
[311406991,1705077156200,-151.0,0.00035616,7]
[311406992,1705077156209,-151.0,0.00035616,7]
[311406993,1705077156218,-151.0,0.00035616,7]
[311406994,1705077156227,-151.0,0.00035616,7]
[311406995,1705077156236,-151.0,0.00035616,7]
[311406996,1705077156246,-151.0,0.00035616,7]
[311406997,1705077156256,-151.0,0.00035616,7]
[311406998,1705077156265,-151.0,0.00035616,7]
[311406999,1705077156274,-151.0,0.00035616,7]
[311407000,1705077156284,-151.0,0.00035616,7]
[311407001,1705077156293,-151.0,0.00035616,7]
[311407002,1705077156302,-151.0,0.00035616,7]
[311407003,1705077156311,-183.024399,0.00035616,7]
[311407004,1705077156321,-151.0,0.00035616,7]
[311407005,1705077156330,-151.0,0.00035616,7]
[311407006,1705077156339,-151.0,0.00035616,7]
[311407007,1705077156349,-151.0,0.00035616,7]
[311407008,1705077156358,-151.0,0.00035616,7]
[311407009,1705077156368,-151.0,0.00035616,7]
[311407010,1705077156378,-151.0,0.00035616,7]
[311407011,1705077156387,-287.90138901,0.00035616,7]
[311407012,1705077156397,-151.0,0.00035616,7]
[311407013,1705077156406,-151.0,0.00035616,7]
[311407014,1705077156416,-151.0,0.00035616,7]
[311407015,1705077156425,-151.0,0.00035616,7]
[311407016,1705077156435,-153.233753,0.00035616,7]
[311407017,1705077156444,-159.620211,0.00035616,7]
[311407018,1705077156453,-159.620211,0.00035616,7]
[311407019,1705077156462,-159.620211,0.00035616,7]
[311407020,1705077156472,-159.620211,0.00035616,7]
[311407021,1705077156482,-159.620211,0.00035616,7]
[311407022,1705077156492,-159.620211,0.00035616,7]
[311407023,1705077156502,-159.620211,0.00035616,7]
[311407024,1705077156511,-159.620211,0.00035616,7]
[311407025,1705077156520,-159.620211,0.00035616,7]
[311407026,1705077156530,-159.620211,0.00035616,7]
[311407027,1705077156541,-159.620211,0.00035616,7]
[311407028,1705077156553,-159.620211,0.00035616,7]
[311407029,1705077156563,-159.620211,0.00035616,7]
[311407030,1705077156572,-159.620211,0.00035616,7]
[311407031,1705077156583,-159.620211,0.00035616,7]
[311407032,1705077156592,-159.620211,0.00035616,7]
[311407033,1705077156601,-159.620211,0.00035616,7]
[311407034,1705077156611,-159.620211,0.00035616,7]
[311407035,1705077156620,-151.0,0.00035616,7]
[311407036,1705077156629,-151.0,0.00035616,7]
[311407037,1705077156639,-151.0,0.00035616,7]
[311407038,1705077156649,-151.0,0.00035616,7]
[311407039,1705077156658,-151.0,0.00035616,7]
[311407040,1705077156668,-151.0,0.00035616,7]
[311407041,1705077156677,-151.0,0.00035616,7]
[311407042,1705077156686,-151.0,0.00035616,7]
[311407043,1705077156695,-161.275443,0.00035616,7]
[311407044,1705077156704,-151.0,0.00035616,7]
[311407045,1705077156713,-151.0,0.00035616,7]
[311407046,1705077156722,-151.0,0.00035616,7]
[311407047,1705077156732,-151.0,0.00035616,7]
[311407048,1705077156741,-151.0,0.00035616,7]
[311407049,1705077156751,-151.0,0.00035616,7]
[311407050,1705077156761,-151.0,0.00035616,7]
[311407051,1705077156771,-151.0,0.00035616,7]
[311407052,1705077156782,-173.484951,0.00035616,7]
[311407053,1705077156792,-151.0,0.00035616,7]
[311407054,1705077156801,-151.0,0.00035616,7]
[311407055,1705077156811,-151.0,0.00035616,7]
[311407056,1705077156821,-151.0,0.00035616,7]
[311407057,1705077156830,-151.0,0.00035616,7]
[311407058,1705077156840,-151.0,0.00035616,7]
[311407059,1705077156851,-151.0,0.00035616,7]
[311407060,1705077156860,-151.0,0.00035616,7]
[311407061,1705077156870,-151.0,0.00035616,7]
[311407062,1705077156879,-160.104335,0.00035616,7]
[311407063,1705077156888,-288.564047,0.00035616,7]
[311407064,1705077156898,-288.564047,0.00035616,7]
[311407065,1705077156908,-288.564047,0.00035616,7]
[311407066,1705077156917,-288.564047,0.00035616,7]
[311407067,1705077156927,-288.564047,0.00035616,7]
[311407068,1705077156936,-288.564047,0.00035616,7]
[311407069,1705077156949,-288.564047,0.00035616,7]
[311407070,1705077156959,-288.564047,0.00035616,7]
[311407071,1705077156968,-288.564047,0.00035616,7]
[311407072,1705077156977,-288.564047,0.00035616,7]
[311407073,1705077156986,-288.564047,0.00035616,7]
[311407074,1705077156997,-288.564047,0.00035616,7]
[311407075,1705077157007,-288.564047,0.00035616,7]
[311407076,1705077157016,-288.564047,0.00035616,7]
[311407077,1705077157027,-288.564047,0.00035616,7]
[311407078,1705077157036,-288.564047,0.00035616,7]
[311407079,1705077157045,-288.564047,0.00035616,7]
[311407080,1705077157055,-288.564047,0.00035616,7]
[311407081,1705077157065,-288.564047,0.00035616,7]
[311407082,1705077157076,-288.564053,0.00035616,7]
[311407083,1705077157086,-151.0,0.00035616,7]
[311407084,1705077157095,-151.0,0.00035616,7]
[311407085,1705077157105,-151.0,0.00035616,7]
[311407086,1705077157114,-151.0,0.00035616,7]
[311407087,1705077157123,-151.0,0.00035616,7]
[311407088,1705077157133,-151.0,0.00035616,7]
[311407089,1705077157143,-151.0,0.00035616,7]
[311407090,1705077157153,-151.0,0.00035616,7]
[311407091,1705077157163,-151.0,0.00035616,7]
[311407092,1705077157173,-218.830541,0.00035616,7]
[311407093,1705077157182,-151.0,0.00035616,7]
[311407094,1705077157192,-225.439266,0.00035616,7]
[311407095,1705077157201,-156.524727,0.00035616,7]
[311407096,1705077157211,-151.0,0.00035616,7]
[311407097,1705077157221,-151.0,0.00035616,7]
[311407098,1705077157230,-151.0,0.00035616,7]
[311407099,1705077157239,-151.0,0.00035616,7]
[311407100,1705077157250,-266.705448,0.00035616,7]
[311407101,1705077157259,-216.721665,0.00035616,7]
[311407102,1705077157269,-151.0,0.00035616,7]
[311407103,1705077157278,-151.0,0.00035616,7]
[311407104,1705077157288,-151.0,0.00035616,7]
[311407105,1705077157298,-218.06,0.00035616,7]
[311407106,1705077157307,-1122.072142,0.00035616,7]
[311407107,1705077157316,-1122.072142,0.00035616,7]
[311407108,1705077157326,-1122.072142,0.00035616,7]
[311407109,1705077157336,-1122.072142,0.00035616,7]
[311407110,1705077157346,-1122.072142,0.00035616,7]
[311407111,1705077157355,-1122.072142,0.00035616,7]
[311407112,1705077157364,-1122.072142,0.00035616,7]
[311407113,1705077157374,-1122.072142,0.00035616,7]
[311407114,1705077157383,-1122.072142,0.00035616,7]
[311407115,1705077157392,-1122.072142,0.00035616,7]
[311407116,1705077157401,-1122.072142,0.00035616,7]
[311407117,1705077157410,-1122.072142,0.00035616,7]
[311407118,1705077157419,-1122.072142,0.00035616,7]
[311407119,1705077157428,-1122.072142,0.00035616,7]
[311407120,1705077157437,-1122.072142,0.00035616,7]
[311407121,1705077157447,-1122.072142,0.00035616,7]
[311407122,1705077157457,-1122.072142,0.00035616,7]
[311407123,1705077157466,-1122.072142,0.00035616,7]
[311407124,1705077157475,-1122.072142,0.00035616,7]
[311407125,1705077157484,-1122.07214,0.00035616,7]
[311407126,1705077157494,-151.0,0.00035616,7]
[311407127,1705077157503,-151.0,0.00035616,7]
[311407128,1705077157519,-176.810062,0.00035616,7]
[311407129,1705077157529,-167.947357,0.00035616,7]
[311407130,1705077157540,-167.947357,0.00035616,7]
[311407131,1705077157550,-167.947357,0.00035616,7]
[311407132,1705077157560,-167.947357,0.00035616,7]
[311407133,1705077157569,-161.0,0.00035625,2]
[311407134,1705077157578,-1749.55,0.000357,7]
[311407135,1705077157587,-7884.95,0.000357,7]
[311407136,1705077157597,-8818.05,0.000357,7]
[311407137,1705077157606,-150.0,0.000357,24]
[311407138,1705077157615,-1403.261193,0.00035761,2]
[311407139,1705077157624,-500.0,0.00035776,7]
[311407140,1705077157633,-7250.66,0.00035798,2]
[311407141,1705077157642,-151.76009724,0.00035851,2]
[311407142,1705077157651,-150.0,0.00035953,2]
[311407143,1705077157660,-205.0,0.0003596,2]
[311407144,1705077157670,-100000.0,0.00036,6]
[311407145,1705077157679,-1660.95673049,0.00036,4]
[311407146,1705077157688,-1000.0,0.00036,2]
[311407147,1705077157697,-116557.18901641,0.00036,4]
[311407148,1705077157705,-761.666924,0.00036,4]
[311407149,1705077157715,-54821.0,0.00036,2]
[311407150,1705077157724,-391.0,0.00036,2]
[311407151,1705077157733,-6000.0,0.00036,2]
[311407152,1705077157743,-8750.0,0.00036,2]
[311407153,1705077157752,-8749.99,0.00036,2]
[311407154,1705077157761,-255.0,0.00036,2]
[311407155,1705077157770,-8750.0,0.00036,2]
[311407156,1705077157780,-1102.0,0.00036,7]
[311407157,1705077157789,-8750.0,0.00036,2]
[311407158,1705077157798,-1403.261193,0.0003605,2]
[311407159,1705077157807,-16000.0,0.00036056,3]
[311407160,1705077157816,-16000.0,0.00036065,3]
[311407161,1705077157825,-8750.0,0.00036075,2]
[311407162,1705077157835,-8750.0,0.00036075,2]
[311407163,1705077157844,-45721.49848991,0.00036089,2]
[311407164,1705077157854,-45721.49848984,0.00036089,2]
[311407165,1705077157863,-45721.49848984,0.00036089,2]
[311407166,1705077157873,-45721.49848984,0.00036089,2]
[311407167,1705077157882,-45721.49848984,0.00036089,2]
[311407168,1705077157892,-45721.49848984,0.00036089,2]
[311407169,1705077157902,-45721.49848984,0.00036089,2]
[311407170,1705077157911,-45721.49848984,0.00036089,2]
[311407171,1705077157920,-45721.49848984,0.00036089,2]
[311407172,1705077157930,-45721.49848984,0.00036089,2]
[311407173,1705077157939,-1749.55,0.000361,7]
[311407174,1705077157948,-7884.95,0.000361,7]
[311407175,1705077157958,-8818.05,0.000361,7]
[311407176,1705077157967,-1243.15,0.0003615,2]
[311407177,1705077157976,-8750.0,0.0003615,2]
[311407178,1705077157986,-150.0,0.000362,25]
[311407179,1705077157996,-8750.0,0.00036225,2]
[311407180,1705077158006,-2455.29,0.000363,2]
[311407181,1705077158015,-1403.261193,0.00036338,2]
[311407182,1705077158024,-10000.0,0.0003639,3]
[311407183,1705077158033,-150.0,0.000364,2]
[311407184,1705077158042,-5000.0,0.00036408,4]
[311407185,1705077158050,-519.38407878,0.00036431,8]
[311407186,1705077158059,-519.38407864,0.00036431,8]
[311407187,1705077158068,-519.38407864,0.00036431,8]
[311407188,1705077158077,-151.76009724,0.00036491,2]
[311407189,1705077158086,-5000.0,0.000365,25]
[311407190,1705077158095,-40000.0,0.000365,6]
[311407191,1705077158104,-1749.55,0.000365,7]
[311407192,1705077158113,-7884.95,0.000365,7]
[311407193,1705077158122,-8818.05,0.000365,7]
[311407194,1705077158133,-153.84,0.0003653,2]
[311407195,1705077158143,-1000.0,0.000366,2]
[311407196,1705077158153,-1000.0,0.000366,2]
[311407197,1705077158162,-151.48,0.00036603,2]
[311407198,1705077158171,-808.39,0.00036613,15]
[311407199,1705077158181,-1762.18406525,0.00036621,2]
[311407200,1705077158190,-1403.261193,0.00036627,2]
[311407201,1705077158200,-150.0,0.000367,26]
[311407202,1705077158209,-152.0,0.00036733,4]
[311407203,1705077158219,-159.620211,0.00036797,7]
[311407204,1705077158227,-159.620213,0.00036797,7]
[311407205,1705077158238,-1483504.2443856,0.000368,7]
[311407206,1705077158248,-173.469485,0.000368,7]
[311407207,1705077158258,-150.0,0.00036846,2]
[311407208,1705077158268,-1749.55,0.000369,7]
[311407209,1705077158278,-7884.95,0.000369,7]
[311407210,1705077158288,-8818.05,0.000369,7]
[311407211,1705077158298,-622647.68557437,0.000369,3]
[311407212,1705077158309,-4746.19548772,0.000369,2]
[311407213,1705077158319,-4746.19548768,0.000369,2]
[311407214,1705077158330,-4746.19548768,0.000369,2]
[311407215,1705077158339,-4746.19548768,0.000369,2]
[311407216,1705077158349,-4746.19548768,0.000369,2]
[311407217,1705077158358,-4746.19548768,0.000369,2]
[311407218,1705077158368,-4746.19548768,0.000369,2]
[311407219,1705077158378,-4746.19548768,0.000369,2]
[311407220,1705077158388,-4746.19548768,0.000369,2]
[311407221,1705077158397,-1403.261193,0.00036915,2]
[311407222,1705077158407,-216.0,0.0003692,2]
[311407223,1705077158416,-205.0,0.0003692,2]
[311407224,1705077158426,-2000.0,0.00036999,2]
[311407225,1705077158435,-3413.81349475,0.00036999,3]
[311407226,1705077158444,-1973.84689895,0.00036999,2]
[311407227,1705077158454,-100000.0,0.00037,7]
[311407228,1705077158463,-5000.0,0.00037,3]
[311407229,1705077158473,-155.0,0.00037,4]
[311407230,1705077158482,-383.0,0.00037,2]
[311407231,1705077158492,-1000.0,0.00037,7]
[311407232,1705077158503,-309.15941751,0.00037,4]
[311407233,1705077158512,-150.0,0.00037,30]
[311407234,1705077158522,-670.01039414,0.00037,7]
[311407235,1705077158532,-1550.0,0.00037,3]
[311407236,1705077158542,-200.00000001,0.00037,4]
[311407237,1705077158557,-20875.45724109,0.00037,2]
[311407238,1705077158567,-1744330.5436074,0.00037,2]
[311407239,1705077158576,-2500.0,0.00037,7]
[311407240,1705077158585,-500.0,0.0003706,7]
[311407241,1705077158596,-500.0,0.0003706,7]
[311407242,1705077158605,-7250.66,0.00037075,2]
[311407243,1705077158614,-151.76009724,0.00037131,2]
[311407244,1705077158623,-300.0,0.00037151,2]
[311407245,1705077158635,-150.0,0.00037196,4]
[311407246,1705077158644,-150.0,0.000372,30]
[311407247,1705077158654,-151.140716,0.000372,2]
[311407248,1705077158663,-171.400897,0.000372,26]
[311407249,1705077158672,-1403.261193,0.00037204,2]
[311407250,1705077158681,-809.91503498,0.0003724,4]
[311407251,1705077158691,-150.5784997,0.00037241,7]
[311407252,1705077158700,-150.0,0.00037293,2]
[311407253,1705077158709,-1749.55,0.000373,7]
[311407254,1705077158718,-7884.95,0.000373,7]
[311407255,1705077158728,-8818.05,0.000373,7]
[311407256,1705077158737,-1878.59,0.000373,3]
[311407257,1705077158748,-1878.59,0.000373,3]
[311407258,1705077158758,-1878.59,0.000373,3]
[311407259,1705077158767,-1878.59,0.000373,3]
[311407260,1705077158776,-1878.59,0.000373,3]
[311407261,1705077158785,-1878.59,0.000373,3]
[311407262,1705077158795,-1878.59,0.000373,3]
[311407263,1705077158804,-1878.59,0.000373,3]
[311407264,1705077158812,-1878.59,0.000373,3]
[311407265,1705077158822,-1878.59,0.000373,3]
[311407266,1705077158833,-1878.59,0.000373,3]
[311407267,1705077158842,-1878.59,0.000373,3]
[311407268,1705077158851,-1878.59,0.000373,3]
[311407269,1705077158861,-1878.59,0.000373,3]
[311407270,1705077158870,-1878.59,0.000373,3]
[311407271,1705077158879,-1878.59,0.000373,3]
[311407272,1705077158888,-1878.59,0.000373,3]
[311407273,1705077158897,-1878.59,0.000373,3]
[311407274,1705077158906,-1878.59,0.000373,3]
[311407275,1705077158915,-1878.59,0.000373,3]
[311407276,1705077158924,-157.67,0.000373,3]
[311407277,1705077158934,-157.67,0.000373,3]
[311407278,1705077158943,-157.67,0.000373,3]
[311407279,1705077158952,-157.67,0.000373,3]
[311407280,1705077158962,-156.05480545,0.00037301,7]
[311407281,1705077158972,-158.77673942,0.0003731,7]
[311407282,1705077158982,-152.5540413,0.00037321,7]
[311407283,1705077158991,-157.49412757,0.00037367,7]
[311407284,1705077159002,-189.9934924,0.00037397,7]
[311407285,1705077159011,-150.0,0.000374,30]
[311407286,1705077159020,-205.0,0.00037437,24]
[311407287,1705077159030,-235.44289454,0.0003744,7]
[311407288,1705077159039,-189.9934924,0.00037442,7]
[311407289,1705077159048,-153.84,0.00037443,2]
[311407290,1705077159057,-5747.81411814,0.0003748,120]
[311407291,1705077159066,-158.15645333,0.0003748,120]
[311407292,1705077159075,-1673.67139358,0.0003748,15]
[311407293,1705077159084,-13590.39638768,0.0003748,120]
[311407294,1705077159094,-10258.89417175,0.0003748,120]
[311407295,1705077159103,-18652.29305194,0.0003748,120]
[311407296,1705077159112,-118439.2864424,0.0003748,2]
[311407297,1705077159121,-5328.99732779,0.0003748,2]
[311407298,1705077159130,-460.14337341,0.0003748,2]
[311407299,1705077159140,-378.33631591,0.0003748,2]
[311407300,1705077159149,-14539.78164746,0.0003748,2]
[311407301,1705077159158,-226.51603186,0.0003748,2]
[311407302,1705077159169,-2035.02243253,0.0003748,2]
[311407303,1705077159178,-385.86880861,0.0003748,2]
[311407304,1705077159187,-523.18825963,0.0003748,2]
[311407305,1705077159196,-990.23068476,0.0003748,2]
[311407306,1705077159205,-348.03396012,0.0003748,2]
[311407307,1705077159215,-9323.05245294,0.0003748,2]
[311407308,1705077159225,-5000.0,0.0003748,2]
[311407309,1705077159234,-21343.29174251,0.0003748,120]
[311407310,1705077159243,-193.05285363,0.0003748,21]
[311407311,1705077159253,-3409.41900024,0.0003748,30]
[311407312,1705077159262,-1331.10990813,0.0003748,10]
[311407313,1705077159271,-1754.3941696,0.0003748,2]
[311407314,1705077159280,-550.36483895,0.0003748,2]
[311407315,1705077159291,-525.0,0.0003748,2]
[311407316,1705077159300,-500.0,0.0003748,120]
[311407317,1705077159309,-100520.0,0.0003748,30]
[311407318,1705077159318,-510.29968058,0.0003748,3]
[311407319,1705077159328,-800.49899282,0.0003748,120]
[311407320,1705077159337,-170000.0,0.0003748,30]
[311407321,1705077159346,-1903.885807,0.0003748,30]
[311407322,1705077159355,-305.136571,0.0003748,30]
[311407323,1705077159364,-1420.540733,0.0003748,2]
[311407324,1705077159475,-3444.94135247,0.0003748,3]
[311407325,1705077159485,-1967.195731,0.0003748,30]
[311407326,1705077159495,-1403.261193,0.00037492,2]
[311407327,1705077159504,-1490.0,0.000375,12]
[311407328,1705077159519,-5000.0,0.000375,30]
[311407329,1705077159529,-938.9528275,0.000375,2]
[311407330,1705077159539,-152.0,0.000375,7]
[311407331,1705077159549,-1168.5420571,0.0003751,2]
[311407332,1705077159559,-4900.62126846,0.0003751,2]
[311407333,1705077159568,-3301.71462104,0.0003751,2]
[311407334,1705077159579,-198.35611184,0.00037522,7]
[311407335,1705077159588,-539.164538,0.00037534,14]
[311407336,1705077159598,-152.67626458,0.00037536,7]
[311407337,1705077159608,-235.44289454,0.00037592,7]
[311407338,1705077159617,-150.0,0.000376,30]
[311407339,1705077159627,-2003.28,0.000376,2]
[311407340,1705077159636,-1000.0,0.000376,2]
[311407341,1705077159646,-1000.0,0.000376,2]
[311407342,1705077159655,-311.283737,0.000376,2]
[311407343,1705077159665,-235.44289454,0.00037601,7]
[311407344,1705077159675,-152.5540413,0.00037623,7]
[311407345,1705077159685,-235.44289454,0.00037635,7]
[311407346,1705077159694,-300.0,0.0003767,2]
[311407347,1705077159704,-500.0,0.0003767,2]
[311407348,1705077159714,-153.80314389,0.00037675,7]
[311407349,1705077159723,-189.9934924,0.00037678,7]
[311407350,1705077159732,-152.67626458,0.00037682,7]
[311407351,1705077159742,-1749.55,0.000377,7]
[311407352,1705077159755,-7884.95,0.000377,7]
[311407353,1705077159765,-8818.05,0.000377,7]
[311407354,1705077159774,-189.9934924,0.00037717,7]
[311407355,1705077159784,-157.88524056,0.00037721,7]
[311407356,1705077159793,-158.77673942,0.00037731,7]
[311407357,1705077159803,-150.0,0.0003774,2]
[311407358,1705077159812,-764.47,0.00037748,2]
[311407359,1705077159822,-151.76009724,0.00037771,2]
[311407360,1705077159831,-1403.261193,0.00037781,2]
[311407361,1705077159841,-150.0,0.000378,30]
[311407362,1705077159850,-8640.36,0.00037808,2]
[311407363,1705077159860,-2927.4,0.00037808,2]
[311407364,1705077159869,-2049.0,0.0003781,5]
[311407365,1705077159879,-2049.0,0.0003781,5]
[311407366,1705077159888,-5000.0,0.00037852,6]
[311407367,1705077159898,-216.0,0.0003788,2]
[311407368,1705077159907,-205.0,0.0003788,2]
[311407369,1705077159917,-10449.25221191,0.00037888,5]
[311407370,1705077159926,-2025.0,0.0003789,3]
[311407371,1705077159936,-189.9934924,0.00037891,7]
[311407372,1705077159945,-888.5,0.000379,2]
[311407373,1705077159954,-646275.190224,0.000379,2]
[311407374,1705077159964,-153.80314389,0.00037928,7]
[311407375,1705077159974,-150.5,0.0003797,120]
[311407376,1705077159983,-150.5,0.0003797,120]
[311407377,1705077159993,-181.0,0.0003797,120]
[311407378,1705077160005,-150.5,0.0003797,120]
[311407379,1705077160015,-181.0,0.0003797,120]
[311407380,1705077160025,-150.5,0.0003798,120]
[311407381,1705077160034,-150.5,0.0003798,120]
[311407382,1705077160044,-238.82,0.0003798,120]
[311407383,1705077160053,-181.0,0.0003798,120]
[311407384,1705077160063,-150.5,0.0003798,120]
[311407385,1705077160073,-181.0,0.0003798,120]
[311407386,1705077160083,-181.0,0.0003798,120]
[311407387,1705077160093,-189.11,0.0003798,120]
[311407388,1705077160103,-150.5,0.0003799,120]
[311407389,1705077160113,-150.5,0.0003799,120]
[311407390,1705077160122,-150.5,0.0003799,120]
[311407391,1705077160133,-150.5,0.0003799,120]
[311407392,1705077160142,-181.0,0.0003799,120]
[311407393,1705077160152,-181.0,0.0003799,120]
[311407394,1705077160161,-186.93,0.0003799,120]
[311407395,1705077160170,-181.0,0.0003799,120]
[311407396,1705077160180,-181.0,0.0003799,120]
[311407397,1705077160190,-150.5,0.0003799,120]
[311407398,1705077160199,-100000.0,0.00038,8]
[311407399,1705077160209,-150.0,0.00038,30]
[311407400,1705077160218,-1000.0,0.00038,8]
[311407401,1705077160228,-1602.476551,0.00038,15]
[311407402,1705077160238,-3432.85906271,0.00038,4]
[311407403,1705077160247,-11000.000001,0.00038,30]
[311407404,1705077160257,-17217.22338603,0.00038,2]
[311407405,1705077160267,-235.44289454,0.00038014,7]
[311407406,1705077160276,-153.59176383,0.00038037,7]
[311407407,1705077160286,-301.76,0.00038059,2]
[311407408,1705077160299,-153.80314389,0.0003806,7]
[311407409,1705077160310,-1403.261193,0.00038069,2]
[311407410,1705077160320,-158.67495795,0.0003809,7]
[311407411,1705077160330,-1749.55,0.000381,7]
[311407412,1705077160339,-7884.95,0.000381,7]
[311407413,1705077160350,-8818.05,0.000381,7]
[311407414,1705077160360,-235.44289454,0.00038126,7]
[311407415,1705077160369,-500.0,0.00038156,7]
[311407416,1705077160379,-500.0,0.00038156,7]
[311407417,1705077160388,-152.40134702,0.00038158,7]
[311407418,1705077160398,-157.49412757,0.00038165,7]
[311407419,1705077160407,-198.35611184,0.00038171,7]
[311407420,1705077160417,-150.0,0.00038187,2]
[311407421,1705077160427,-1762.18406525,0.00038199,2]
[311407422,1705077160436,-277.9591408,0.000382,30]
[311407423,1705077160446,-157.88524056,0.000382,7]
[311407424,1705077160455,-500.0,0.00038208,30]